[Event "Titled Tuesday Blitz April 25 Early 2023"]
[White "Gurevich, Dmitry"]
[Black "Hua, Lefong"]
[WhiteFideId "2000407"]
[BlackFideId "2602253"]
[WhiteElo "2506"]
[BlackElo "2657"]
[Result "1/2-1/2"]
[Round "04"]
[TimeControl "180+2"]
[Date "2023.04.25"]
[WhiteClock "0:00:09"]
[BlackClock "0:00:21"]

1. d4 {[%clk 0:03:00]}  Nf6 {[%clk 0:03:00]} 2. c4 {[%clk 0:02:58]}  c5 {[%clk 0:02:56]} 3. Nf3 {[%clk 0:02:57]}  cxd4 {[%clk 0:02:55]} 4. Nxd4 {[%clk 0:02:57]}  g6 {[%clk 0:02:56]} 5. Nc3 {[%clk 0:02:56]}  Bg7 {[%clk 0:02:56]} 6. e4 {[%clk 0:02:56]}  d6 {[%clk 0:02:55]} 7. Be2 {[%clk 0:02:56]}  O-O {[%clk 0:02:55]} 8. Be3 {[%clk 0:02:57]}  Nc6 {[%clk 0:02:55]} 9. O-O {[%clk 0:02:55]}  Bd7 {[%clk 0:02:55]} 10. Qd2 {[%clk 0:02:55]}  Nxd4 {[%clk 0:02:49]} 11. Bxd4 {[%clk 0:02:54]}  Bc6 {[%clk 0:02:49]} 12. f3 {[%clk 0:02:53]}  a5 {[%clk 0:02:49]} 13. b3 {[%clk 0:02:48]}  Nd7 {[%clk 0:02:47]} 14. Bf2 {[%clk 0:02:41]}  Nc5 {[%clk 0:02:46]} 15. Rab1 {[%clk 0:02:38]}  Qb6 {[%clk 0:02:44]} 16. Rfc1 {[%clk 0:02:35]}  Rfc8 {[%clk 0:02:41]} 17. Bf1 {[%clk 0:02:07]}  Qd8 {[%clk 0:02:29]} 18. a3 {[%clk 0:02:02]}  Qf8 {[%clk 0:01:57]} 19. b4 {[%clk 0:02:00]}  axb4 {[%clk 0:01:58]} 20. axb4 {[%clk 0:02:00]}  Na4 {[%clk 0:01:48]} 21. Nd5 {[%clk 0:01:57]}  Bxd5 {[%clk 0:01:43]} 22. exd5 {[%clk 0:01:53]}  Qd8 {[%clk 0:01:32]} 23. c5 {[%clk 0:01:49]}  dxc5 {[%clk 0:01:10]} 24. bxc5 {[%clk 0:01:49]}  Ra5 {[%clk 0:01:09]} 25. Bb5 {[%clk 0:01:33]}  b6 {[%clk 0:00:41]} 26. c6 {[%clk 0:01:28]}  Nc5 {[%clk 0:00:36]} 27. Bf1 {[%clk 0:01:09]}  e6 {[%clk 0:00:27]} 28. Qb4 {[%clk 0:00:50]}  Qxd5 {[%clk 0:00:20]} 29. Qxb6 {[%clk 0:00:49]}  Na4 {[%clk 0:00:17]} 30. Qb7 {[%clk 0:00:42]}  Raa8 {[%clk 0:00:17]} 31. c7 {[%clk 0:00:38]}  Nc3 {[%clk 0:00:15]} 32. Qxd5 {[%clk 0:00:32]}  Nxd5 {[%clk 0:00:15]} 33. Rb7 {[%clk 0:00:32]}  Be5 {[%clk 0:00:16]} 34. Bg3 {[%clk 0:00:24]}  Bxg3 {[%clk 0:00:13]} 35. hxg3 {[%clk 0:00:24]}  Kf8 {[%clk 0:00:14]} 36. Bd3 {[%clk 0:00:18]}  Ke7 {[%clk 0:00:14]} 37. Be4 {[%clk 0:00:18]}  Kd6 {[%clk 0:00:14]} 38. Bxd5 {[%clk 0:00:16]}  exd5 {[%clk 0:00:15]} 39. Rb6+ {[%clk 0:00:14]}  Kd7 {[%clk 0:00:15]} 40. Rb5 {[%clk 0:00:14]}  Ra6 {[%clk 0:00:14]} 41. Rxd5+ {[%clk 0:00:13]}  Rd6 {[%clk 0:00:15]} 42. Rxd6+ {[%clk 0:00:13]}  Kxd6 {[%clk 0:00:16]} 43. g4 {[%clk 0:00:13]}  Rxc7 {[%clk 0:00:16]} 44. Rxc7 {[%clk 0:00:13]}  Kxc7 {[%clk 0:00:17]} 45. g5 {[%clk 0:00:13]}  Kd6 {[%clk 0:00:18]} 46. Kf2 {[%clk 0:00:11]}  Ke5 {[%clk 0:00:18]} 47. Kg3 {[%clk 0:00:10]}  Kf5 {[%clk 0:00:18]} 48. f4 {[%clk 0:00:10]}  Ke4 {[%clk 0:00:18]} 49. Kg4 {[%clk 0:00:10]}  Ke3 {[%clk 0:00:18]} 50. Kg3 {[%clk 0:00:09]}  Ke4 {[%clk 0:00:18]} 51. Kg4 {[%clk 0:00:09]}  Kd4 {[%clk 0:00:19]} 52. Kf3 {[%clk 0:00:09]}  Kd3 {[%clk 0:00:19]} 53. g3 {[%clk 0:00:09]}  Kd4 {[%clk 0:00:19]} 54. Ke2 {[%clk 0:00:09]}  Ke4 {[%clk 0:00:20]} 55. Kf2 {[%clk 0:00:09]}  Kd3 {[%clk 0:00:20]} 56. Kf3 {[%clk 0:00:08]}  Kd4 {[%clk 0:00:20]} 57. Kf2 {[%clk 0:00:08]}  Ke4 {[%clk 0:00:21]} 58. Ke2 {[%clk 0:00:08]}  Kd4 {[%clk 0:00:20]} 59. Kf3 {[%clk 0:00:08]}  Kd3 {[%clk 0:00:20]} 60. Kf2 {[%clk 0:00:08]}  Ke4 {[%clk 0:00:20]} 61. Ke2 {[%clk 0:00:09]}  Kd4 {[%clk 0:00:20]} 62. Kf3 {[%clk 0:00:09]}  Kd3 {[%clk 0:00:21]} 63. Kf2 {[%clk 0:00:09]}  Kd4 {[%clk 0:00:21]} 64. Kf3 {[%clk 0:00:09]} 1/2-1/2


[Site "https://www.chess.com"]

[Event "Titled Tuesday Blitz April 25 Early 2023"]
[White "Bryant, John Daniel"]
[Black "Rottenwohrer Suarez, Juan"]
[WhiteFideId "2031280"]
[BlackFideId "32068182"]
[WhiteElo "2455"]
[BlackElo "2174"]
[Result "1-0"]
[Round "04"]
[TimeControl "180+2"]
[Date "2023.04.25"]
[WhiteClock "0:00:23"]
[BlackClock "0:00:02"]

1. e4 {[%clk 0:03:00]}  c5 {[%clk 0:02:58]} 2. c3 {[%clk 0:02:43]}  Nf6 {[%clk 0:02:51]} 3. e5 {[%clk 0:02:43]}  Nd5 {[%clk 0:02:51]} 4. Nf3 {[%clk 0:02:42]}  d6 {[%clk 0:02:45]} 5. Bc4 {[%clk 0:02:41]}  Nb6 {[%clk 0:02:44]} 6. Bb3 {[%clk 0:02:37]}  c4 {[%clk 0:02:25]} 7. Bc2 {[%clk 0:02:37]}  Nc6 {[%clk 0:02:26]} 8. exd6 {[%clk 0:02:36]}  Qxd6 {[%clk 0:02:27]} 9. Na3 {[%clk 0:02:36]}  e5 {[%clk 0:02:17]} 10. Qe2 {[%clk 0:02:24]}  Be6 {[%clk 0:02:11]} 11. O-O {[%clk 0:02:13]}  Be7 {[%clk 0:02:08]} 12. Re1 {[%clk 0:01:43]}  f6 {[%clk 0:01:55]} 13. b3 {[%clk 0:01:39]}  cxb3 {[%clk 0:01:49]} 14. axb3 {[%clk 0:01:38]}  O-O {[%clk 0:01:43]} 15. Nc4 {[%clk 0:01:12]}  Nxc4 {[%clk 0:01:40]} 16. bxc4 {[%clk 0:01:12]}  Rfe8 {[%clk 0:01:07]} 17. d4 {[%clk 0:01:03]}  Bg4 {[%clk 0:00:46]} 18. Qe4 {[%clk 0:01:01]}  f5 {[%clk 0:00:46]} 19. Qd5+ {[%clk 0:01:01]}  Kh8 {[%clk 0:00:19]} 20. Nxe5 {[%clk 0:00:52]}  Qxd5 {[%clk 0:00:09]} 21. cxd5 {[%clk 0:00:51]}  Nxe5 {[%clk 0:00:04]} 22. dxe5 {[%clk 0:00:49]}  Bc5 {[%clk 0:00:03]} 23. h3 {[%clk 0:00:38]}  Bh5 {[%clk 0:00:04]} 24. Ba3 {[%clk 0:00:26]}  Rac8 {[%clk 0:00:02]} 25. Bxf5 {[%clk 0:00:23]} 1-0


[Site "https://www.chess.com"]

[Event "Titled Tuesday Blitz April 25 Early 2023"]
[White "Kucuksari, Kaan"]
[Black "BenchGM"]
[WhiteFideId "6380166"]
[WhiteElo "2364"]
[BlackElo "2389"]
[Result "1-0"]
[Round "04"]
[TimeControl "180+2"]
[Date "2023.04.25"]
[WhiteClock "0:00:18"]
[BlackClock "0:00:43"]

1. e4 {[%clk 0:03:00]}  e6 {[%clk 0:03:00]} 2. d4 {[%clk 0:02:57]}  d5 {[%clk 0:03:00]} 3. Nc3 {[%clk 0:02:56]}  Nf6 {[%clk 0:03:00]} 4. e5 {[%clk 0:02:56]}  Nfd7 {[%clk 0:03:00]} 5. f4 {[%clk 0:02:56]}  c5 {[%clk 0:03:00]} 6. Nf3 {[%clk 0:02:56]}  Nc6 {[%clk 0:03:01]} 7. Be3 {[%clk 0:02:56]}  cxd4 {[%clk 0:03:01]} 8. Nxd4 {[%clk 0:02:56]}  Qb6 {[%clk 0:03:02]} 9. Qd2 {[%clk 0:02:53]}  Qxb2 {[%clk 0:02:58]} 10. Rb1 {[%clk 0:02:52]}  Qa3 {[%clk 0:02:57]} 11. Ncb5 {[%clk 0:02:50]}  Qxa2 {[%clk 0:02:51]} 12. Qc1 {[%clk 0:02:44]}  Qa5+ {[%clk 0:02:33]} 13. Bd2 {[%clk 0:02:43]}  Qd8 {[%clk 0:02:28]} 14. c4 {[%clk 0:02:39]}  Nxd4 {[%clk 0:02:19]} 15. Nxd4 {[%clk 0:02:35]}  Bc5 {[%clk 0:02:18]} 16. Be3 {[%clk 0:02:33]}  O-O {[%clk 0:02:17]} 17. cxd5 {[%clk 0:02:31]}  exd5 {[%clk 0:02:17]} 18. Bd3 {[%clk 0:02:30]}  Qa5+ {[%clk 0:02:06]} 19. Kf2 {[%clk 0:02:11]}  Qa4 {[%clk 0:01:54]} 20. Bb5 {[%clk 0:02:08]}  Qa5 {[%clk 0:01:42]} 21. Rd1 {[%clk 0:01:44]}  a6 {[%clk 0:01:32]} 22. Bd3 {[%clk 0:01:30]}  b5 {[%clk 0:01:28]} 23. Rb3 {[%clk 0:01:07]}  Qb6 {[%clk 0:01:27]} 24. Bb1 {[%clk 0:01:01]}  Nb8 {[%clk 0:01:15]} 25. Rc3 {[%clk 0:00:56]}  Bb4 {[%clk 0:01:06]} 26. Rxc8 {[%clk 0:00:54]}  Nd7 {[%clk 0:00:59]} 27. Rc6 {[%clk 0:00:48]}  Qa5 {[%clk 0:00:51]} 28. Qc2 {[%clk 0:00:29]}  g6 {[%clk 0:00:49]} 29. h4 {[%clk 0:00:20]}  Nb6 {[%clk 0:00:43]} 30. Nb3 {[%clk 0:00:18]} 1-0


[Site "https://www.chess.com"]

[Event "Titled Tuesday Blitz April 25 Early 2023"]
[White "Hoffmann, Asa"]
[Black "Domingo Nunez, Ruben"]
[WhiteFideId "2001470"]
[BlackFideId "22245570"]
[WhiteElo "2117"]
[BlackElo "2404"]
[Result "0-1"]
[Round "04"]
[TimeControl "180+2"]
[Date "2023.04.25"]
[WhiteClock "0:00:19"]
[BlackClock "0:01:24"]

1. d4 {[%clk 0:02:53]}  g6 {[%clk 0:03:00]} 2. e4 {[%clk 0:02:52]}  Bg7 {[%clk 0:03:01]} 3. Be3 {[%clk 0:02:48]}  c6 {[%clk 0:03:01]} 4. Nc3 {[%clk 0:02:46]}  d5 {[%clk 0:03:02]} 5. Qd2 {[%clk 0:02:44]}  dxe4 {[%clk 0:03:02]} 6. Nxe4 {[%clk 0:02:44]}  Nf6 {[%clk 0:03:03]} 7. Nxf6+ {[%clk 0:02:42]}  exf6 {[%clk 0:03:04]} 8. Nf3 {[%clk 0:02:34]}  O-O {[%clk 0:03:02]} 9. Bh6 {[%clk 0:02:32]}  Re8+ {[%clk 0:03:00]} 10. Be2 {[%clk 0:02:32]}  Bxh6 {[%clk 0:02:55]} 11. Qxh6 {[%clk 0:02:32]}  Bg4 {[%clk 0:02:53]} 12. Qf4 {[%clk 0:02:25]}  Bxf3 {[%clk 0:02:47]} 13. gxf3 {[%clk 0:02:18]}  Na6 {[%clk 0:02:47]} 14. c3 {[%clk 0:02:16]}  Nc7 {[%clk 0:02:46]} 15. Qd2 {[%clk 0:02:13]}  Qe7 {[%clk 0:02:47]} 16. Kf1 {[%clk 0:02:11]}  Rad8 {[%clk 0:02:34]} 17. Re1 {[%clk 0:02:09]}  Qe6 {[%clk 0:02:30]} 18. h4 {[%clk 0:02:07]}  Qxa2 {[%clk 0:02:30]} 19. h5 {[%clk 0:02:07]}  g5 {[%clk 0:02:24]} 20. f4 {[%clk 0:01:59]}  h6 {[%clk 0:02:24]} 21. Kg2 {[%clk 0:01:50]}  Ne6 {[%clk 0:02:15]} 22. fxg5 {[%clk 0:01:43]}  fxg5 {[%clk 0:02:16]} 23. Bg4 {[%clk 0:01:36]}  Nf4+ {[%clk 0:02:14]} 24. Kg3 {[%clk 0:01:36]}  Qd5 {[%clk 0:02:13]} 25. Bf3 {[%clk 0:01:29]}  Qd6 {[%clk 0:02:12]} 26. Kg4 {[%clk 0:01:07]}  f5+ {[%clk 0:02:05]} 27. Kg3 {[%clk 0:00:46]}  Nd3+ {[%clk 0:02:01]} 28. Kg2 {[%clk 0:00:44]}  Nxe1+ {[%clk 0:01:58]} 29. Rxe1 {[%clk 0:00:43]}  Rxe1 {[%clk 0:01:53]} 30. Qxe1 {[%clk 0:00:43]}  Kf7 {[%clk 0:01:53]} 31. Bd1 {[%clk 0:00:41]}  Qd5+ {[%clk 0:01:47]} 32. f3 {[%clk 0:00:40]}  Re8 {[%clk 0:01:47]} 33. Qd2 {[%clk 0:00:33]}  Kf6 {[%clk 0:01:40]} 34. Bc2 {[%clk 0:00:31]}  Qe6 {[%clk 0:01:35]} 35. Kf2 {[%clk 0:00:29]}  Qd6 {[%clk 0:01:35]} 36. Kg2 {[%clk 0:00:27]}  Qf4 {[%clk 0:01:33]} 37. Qd3 {[%clk 0:00:27]}  Re3 {[%clk 0:01:29]} 38. Qf1 {[%clk 0:00:19]}  g4 {[%clk 0:01:24]} 0-1


[Site "https://www.chess.com"]

[Event "Titled Tuesday Blitz April 25 Early 2023"]
[White "mestrefeitosa19"]
[Black "Kozin, Yuri"]
[BlackFideId "4129920"]
[WhiteElo "2227"]
[BlackElo "2621"]
[Result "0-1"]
[Round "04"]
[TimeControl "180+2"]
[Date "2023.04.25"]
[WhiteClock "0:00:03"]
[BlackClock "0:00:07"]

1. c4 {[%clk 0:03:00]}  c6 {[%clk 0:02:57]} 2. e4 {[%clk 0:03:00]}  e5 {[%clk 0:02:57]} 3. Nc3 {[%clk 0:03:00]}  Nf6 {[%clk 0:02:56]} 4. Nf3 {[%clk 0:03:01]}  Qc7 {[%clk 0:02:56]} 5. Be2 {[%clk 0:03:00]}  a5 {[%clk 0:02:54]} 6. O-O {[%clk 0:03:01]}  Bc5 {[%clk 0:02:54]} 7. d4 {[%clk 0:03:00]}  exd4 {[%clk 0:02:51]} 8. Nxd4 {[%clk 0:03:01]}  d6 {[%clk 0:02:49]} 9. Bg5 {[%clk 0:02:57]}  Nbd7 {[%clk 0:02:46]} 10. Nf5 {[%clk 0:02:56]}  O-O {[%clk 0:02:44]} 11. Na4 {[%clk 0:02:38]}  h6 {[%clk 0:02:28]} 12. Nxc5 {[%clk 0:02:35]}  dxc5 {[%clk 0:02:12]} 13. Bxf6 {[%clk 0:02:13]}  Nxf6 {[%clk 0:02:11]} 14. Bf3 {[%clk 0:02:08]}  Bxf5 {[%clk 0:02:04]} 15. exf5 {[%clk 0:02:07]}  Rad8 {[%clk 0:02:05]} 16. Qb3 {[%clk 0:02:04]}  Rd4 {[%clk 0:02:00]} 17. Rac1 {[%clk 0:01:54]}  Rfd8 {[%clk 0:01:52]} 18. Qa3 {[%clk 0:01:53]}  b6 {[%clk 0:01:48]} 19. Rfd1 {[%clk 0:01:39]}  Qf4 {[%clk 0:01:37]} 20. Qb3 {[%clk 0:00:58]}  Ne4 {[%clk 0:00:38]} 21. Bxe4 {[%clk 0:00:38]}  Qxe4 {[%clk 0:00:32]} 22. Re1 {[%clk 0:00:33]}  Qxf5 {[%clk 0:00:27]} 23. Qxb6 {[%clk 0:00:33]}  Rd2 {[%clk 0:00:27]} 24. Rf1 {[%clk 0:00:33]}  a4 {[%clk 0:00:20]} 25. Qxc6 {[%clk 0:00:33]}  Rxb2 {[%clk 0:00:18]} 26. Qxa4 {[%clk 0:00:33]}  Rdd2 {[%clk 0:00:18]} 27. Qa8+ {[%clk 0:00:20]}  Kh7 {[%clk 0:00:18]} 28. Qf3 {[%clk 0:00:21]}  Qg5 {[%clk 0:00:15]} 29. Qe4+ {[%clk 0:00:19]}  g6 {[%clk 0:00:14]} 30. Qe8 {[%clk 0:00:15]}  Qf6 {[%clk 0:00:13]} 31. Qe3 {[%clk 0:00:12]}  Rxa2 {[%clk 0:00:12]} 32. Qxc5 {[%clk 0:00:12]}  h5 {[%clk 0:00:12]} 33. Qe3 {[%clk 0:00:11]}  h4 {[%clk 0:00:12]} 34. c5 {[%clk 0:00:10]}  Qc6 {[%clk 0:00:11]} 35. Qf4 {[%clk 0:00:07]}  h3 {[%clk 0:00:09]} 36. Qxf7+ {[%clk 0:00:07]}  Kh6 {[%clk 0:00:09]} 37. Qf4+ {[%clk 0:00:07]}  Kg7 {[%clk 0:00:09]} 38. Qe5+ {[%clk 0:00:07]}  Kh7 {[%clk 0:00:09]} 39. Qe7+ {[%clk 0:00:06]}  Kg8 {[%clk 0:00:09]} 40. gxh3 {[%clk 0:00:05]}  Rd5 {[%clk 0:00:08]} 41. Qh4 {[%clk 0:00:03]}  Rad2 {[%clk 0:00:07]} 0-1


[Site "https://www.chess.com"]

[Event "Titled Tuesday Blitz April 25 Early 2023"]
[White "Steinberg, Nitzan"]
[Black "Stanisz, Patryk"]
[WhiteFideId "2801795"]
[BlackFideId "1123106"]
[WhiteElo "2486"]
[BlackElo "2069"]
[Result "1-0"]
[Round "04"]
[TimeControl "180+2"]
[Date "2023.04.25"]
[WhiteClock "0:00:24"]
[BlackClock "0:00:01"]

1. Nf3 {[%clk 0:02:59]}  d5 {[%clk 0:02:59]} 2. d4 {[%clk 0:02:59]}  Nf6 {[%clk 0:02:59]} 3. c4 {[%clk 0:02:59]}  c6 {[%clk 0:02:59]} 4. Nc3 {[%clk 0:03:00]}  e6 {[%clk 0:02:59]} 5. e3 {[%clk 0:03:00]}  Nbd7 {[%clk 0:02:59]} 6. Qc2 {[%clk 0:03:01]}  Bd6 {[%clk 0:02:58]} 7. Bd3 {[%clk 0:03:01]}  O-O {[%clk 0:02:57]} 8. O-O {[%clk 0:03:01]}  b6 {[%clk 0:02:56]} 9. b3 {[%clk 0:03:01]}  Bb7 {[%clk 0:02:56]} 10. Bb2 {[%clk 0:03:02]}  Qe7 {[%clk 0:02:55]} 11. e4 {[%clk 0:03:01]}  dxe4 {[%clk 0:02:56]} 12. Nxe4 {[%clk 0:03:02]}  Nxe4 {[%clk 0:02:55]} 13. Bxe4 {[%clk 0:03:03]}  Nf6 {[%clk 0:02:51]} 14. Bd3 {[%clk 0:03:03]}  Rfd8 {[%clk 0:02:45]} 15. Rfe1 {[%clk 0:03:03]}  h6 {[%clk 0:02:41]} 16. Rad1 {[%clk 0:03:02]}  Qc7 {[%clk 0:02:39]} 17. Ne5 {[%clk 0:02:55]}  c5 {[%clk 0:02:20]} 18. dxc5 {[%clk 0:02:50]}  Bxc5 {[%clk 0:02:17]} 19. h3 {[%clk 0:02:46]}  Rac8 {[%clk 0:02:07]} 20. Re2 {[%clk 0:02:38]}  Qe7 {[%clk 0:02:01]} 21. Bc3 {[%clk 0:02:30]}  Bb4 {[%clk 0:01:59]} 22. Bxb4 {[%clk 0:02:23]}  Qxb4 {[%clk 0:02:00]} 23. Rde1 {[%clk 0:02:23]}  Rd4 {[%clk 0:01:48]} 24. Qb2 {[%clk 0:02:00]}  Rcd8 {[%clk 0:01:46]} 25. a3 {[%clk 0:02:00]}  Qe7 {[%clk 0:01:41]} 26. Bb1 {[%clk 0:01:59]}  Qc7 {[%clk 0:01:19]} 27. b4 {[%clk 0:01:36]}  Rd1 {[%clk 0:01:18]} 28. Qc3 {[%clk 0:01:24]}  Qd6 {[%clk 0:01:08]} 29. Bc2 {[%clk 0:01:21]}  Rxe1+ {[%clk 0:01:05]} 30. Rxe1 {[%clk 0:01:22]}  Qc7 {[%clk 0:00:49]} 31. Bb1 {[%clk 0:01:17]}  Rd6 {[%clk 0:00:48]} 32. Bc2 {[%clk 0:01:09]}  Qd8 {[%clk 0:00:47]} 33. c5 {[%clk 0:01:09]}  bxc5 {[%clk 0:00:36]} 34. bxc5 {[%clk 0:01:10]}  Rd4 {[%clk 0:00:22]} 35. c6 {[%clk 0:01:09]}  Bc8 {[%clk 0:00:13]} 36. c7 {[%clk 0:00:46]}  Qd6 {[%clk 0:00:12]} 37. Nc6 {[%clk 0:00:28]}  Rd5 {[%clk 0:00:07]} 38. Nxa7 {[%clk 0:00:28]}  Qd7 {[%clk 0:00:06]} 39. Ba4 {[%clk 0:00:24]}  Qd6 {[%clk 0:00:01]} 40. Nxc8 {[%clk 0:00:24]} 1-0


[Site "https://www.chess.com"]

[Event "Titled Tuesday Blitz April 25 Early 2023"]
[White "Kubicka, Anna"]
[Black "Salinas Herrera, Pablo"]
[WhiteFideId "1152254"]
[BlackFideId "3407128"]
[WhiteElo "2144"]
[BlackElo "2546"]
[Result "0-1"]
[Round "04"]
[TimeControl "180+2"]
[Date "2023.04.25"]
[WhiteClock "0:00:02"]
[BlackClock "0:00:39"]

1. e4 {[%clk 0:03:00]}  c5 {[%clk 0:02:59]} 2. Ne2 {[%clk 0:03:00]}  Nc6 {[%clk 0:02:57]} 3. g3 {[%clk 0:03:00]}  g6 {[%clk 0:02:57]} 4. Bg2 {[%clk 0:03:01]}  Bg7 {[%clk 0:02:58]} 5. O-O {[%clk 0:03:01]}  d6 {[%clk 0:02:58]} 6. c3 {[%clk 0:03:01]}  e5 {[%clk 0:02:59]} 7. Na3 {[%clk 0:03:01]}  Nge7 {[%clk 0:02:58]} 8. Nc2 {[%clk 0:03:02]}  O-O {[%clk 0:02:59]} 9. d4 {[%clk 0:03:02]}  exd4 {[%clk 0:02:55]} 10. cxd4 {[%clk 0:03:02]}  Bg4 {[%clk 0:02:55]} 11. f3 {[%clk 0:02:59]}  Bc8 {[%clk 0:02:52]} 12. Be3 {[%clk 0:02:59]}  b6 {[%clk 0:02:51]} 13. Rc1 {[%clk 0:02:51]}  Ba6 {[%clk 0:02:51]} 14. Rf2 {[%clk 0:02:41]}  Re8 {[%clk 0:02:46]} 15. b3 {[%clk 0:02:38]}  Rc8 {[%clk 0:02:45]} 16. Nc3 {[%clk 0:02:19]}  Qc7 {[%clk 0:01:35]} 17. Rd2 {[%clk 0:02:04]}  Rcd8 {[%clk 0:01:35]} 18. Bf1 {[%clk 0:01:43]}  Bxf1 {[%clk 0:01:34]} 19. Qxf1 {[%clk 0:01:36]}  Qb7 {[%clk 0:01:34]} 20. Nb5 {[%clk 0:01:26]}  a6 {[%clk 0:01:31]} 21. Nba3 {[%clk 0:01:18]}  d5 {[%clk 0:01:16]} 22. dxc5 {[%clk 0:00:42]}  dxe4 {[%clk 0:01:15]} 23. Rxd8 {[%clk 0:00:26]}  Rxd8 {[%clk 0:01:15]} 24. fxe4 {[%clk 0:00:25]}  Ne5 {[%clk 0:01:15]} 25. Qg2 {[%clk 0:00:13]}  bxc5 {[%clk 0:01:07]} 26. Bxc5 {[%clk 0:00:14]}  Rd2 {[%clk 0:01:01]} 27. Qf1 {[%clk 0:00:04]}  Qxe4 {[%clk 0:00:59]} 28. Ne1 {[%clk 0:00:04]}  Nf5 {[%clk 0:00:49]} 29. Bf2 {[%clk 0:00:04]}  h5 {[%clk 0:00:47]} 30. Nc4 {[%clk 0:00:03]}  Rxa2 {[%clk 0:00:41]} 31. Nxe5 {[%clk 0:00:03]}  Qxe5 {[%clk 0:00:42]} 32. Rc8+ {[%clk 0:00:03]}  Kh7 {[%clk 0:00:42]} 33. Nd3 {[%clk 0:00:03]}  Qe4 {[%clk 0:00:41]} 34. Nc5 {[%clk 0:00:02]}  Qf3 {[%clk 0:00:39]} 0-1


[Site "https://www.chess.com"]

[Event "Titled Tuesday Blitz April 25 Early 2023"]
[White "Rios Escobar, Adan"]
[Black "Gunina, Valentina"]
[WhiteFideId "3403645"]
[BlackFideId "4167570"]
[WhiteElo "2490"]
[BlackElo "2352"]
[Result "0-1"]
[Round "04"]
[TimeControl "180+2"]
[Date "2023.04.25"]
[WhiteClock "0:00:03"]
[BlackClock "0:00:37"]

1. d4 {[%clk 0:02:54]}  d5 {[%clk 0:02:59]} 2. g3 {[%clk 0:02:53]}  Nf6 {[%clk 0:02:58]} 3. Nf3 {[%clk 0:02:52]}  Bf5 {[%clk 0:02:59]} 4. c4 {[%clk 0:02:51]}  c6 {[%clk 0:02:59]} 5. Nc3 {[%clk 0:02:51]}  h6 {[%clk 0:02:51]} 6. Qb3 {[%clk 0:02:44]}  Qb6 {[%clk 0:02:50]} 7. cxd5 {[%clk 0:02:44]}  cxd5 {[%clk 0:02:37]} 8. Qxb6 {[%clk 0:02:26]}  axb6 {[%clk 0:02:37]} 9. e3 {[%clk 0:02:18]}  e6 {[%clk 0:02:33]} 10. Bb5+ {[%clk 0:02:18]}  Nc6 {[%clk 0:02:31]} 11. Ne5 {[%clk 0:02:17]}  Rc8 {[%clk 0:02:31]} 12. Na4 {[%clk 0:02:14]}  Bb4+ {[%clk 0:02:22]} 13. Bd2 {[%clk 0:02:10]}  Bxd2+ {[%clk 0:02:22]} 14. Kxd2 {[%clk 0:02:11]}  Ne4+ {[%clk 0:02:23]} 15. Ke2 {[%clk 0:02:07]}  Ke7 {[%clk 0:02:20]} 16. Nxb6 {[%clk 0:02:04]}  Nxe5 {[%clk 0:02:19]} 17. Nxc8+ {[%clk 0:01:57]}  Rxc8 {[%clk 0:02:19]} 18. dxe5 {[%clk 0:01:35]}  Rc2+ {[%clk 0:02:18]} 19. Ke1 {[%clk 0:01:28]}  Nxf2 {[%clk 0:02:16]} 20. Rf1 {[%clk 0:01:23]}  Ng4 {[%clk 0:02:15]} 21. Be2 {[%clk 0:01:10]}  Nxe3 {[%clk 0:02:09]} 22. Rf3 {[%clk 0:01:05]}  d4 {[%clk 0:02:02]} 23. Rf2 {[%clk 0:00:37]}  Rxb2 {[%clk 0:02:00]} 24. Rc1 {[%clk 0:00:29]}  g5 {[%clk 0:01:49]} 25. a4 {[%clk 0:00:25]}  b6 {[%clk 0:01:36]} 26. Bf3 {[%clk 0:00:21]}  Rb4 {[%clk 0:01:30]} 27. Ra2 {[%clk 0:00:14]}  Kf8 {[%clk 0:01:28]} 28. a5 {[%clk 0:00:13]}  bxa5 {[%clk 0:01:28]} 29. Rxa5 {[%clk 0:00:13]}  Kg7 {[%clk 0:01:26]} 30. Ra7 {[%clk 0:00:13]}  Nc4 {[%clk 0:01:24]} 31. Be2 {[%clk 0:00:11]}  Nxe5 {[%clk 0:01:24]} 32. h4 {[%clk 0:00:10]}  d3 {[%clk 0:01:24]} 33. Bd1 {[%clk 0:00:06]}  Rb2 {[%clk 0:01:24]} 34. Rcc7 {[%clk 0:00:05]}  Rg2 {[%clk 0:01:21]} 35. hxg5 {[%clk 0:00:03]}  hxg5 {[%clk 0:01:21]} 36. Bh5 {[%clk 0:00:02]}  d2+ {[%clk 0:01:16]} 37. Kd1 {[%clk 0:00:02]}  Kh6 {[%clk 0:01:13]} 38. Be2 {[%clk 0:00:01]}  Be4 {[%clk 0:00:43]} 39. g4 {[%clk 0:00:01]}  Bf3 {[%clk 0:00:39]} 40. Bxf3 {[%clk 0:00:01]}  Nxf3 {[%clk 0:00:40]} 41. Ra3 {[%clk 0:00:01]}  Rg1+ {[%clk 0:00:39]} 42. Ke2 {[%clk 0:00:01]}  d1=Q+ {[%clk 0:00:39]} 43. Kf2 {[%clk 0:00:02]}  Qe1+ {[%clk 0:00:37]} 44. Kxf3 {[%clk 0:00:03]}  Rg3# {[%clk 0:00:37]} 0-1


[Site "https://www.chess.com"]